Cogmind - Beta 13 @@@ ROGUE MODE // 2024.05.15 @ 22:31:38 Player: Xorko Result: Self-destructed Performance ------------- Evolutions (1) 500 Regions Visited (2) 400 Robots Destroyed (11) 55 Value Destroyed (357) 357 Prototype IDs (0) 0 Alien Tech Used (0) 0 Bonus (0) 0 TOTAL SCORE: 1312 Bonus ------- None Cogmind --------- Core Integrity 389/400 Matter 184/300 Energy 250/250 System Corruption 0% Temperature Cool (0) Movement Walking (120) Location -9/Materials Parts ------- > --- POWER (1) -------- Ion Engine > --- PROPULSION (3) --- Light Treads Aluminum Leg Aluminum Leg > --- UTILITY (3) ------ Medium Storage Unit > --- WEAPON (2) ------- Small Laser Mini Grenade Launcher > --- INVENTORY (10) --- Ion Engine Light Treads Wheel Compact Wheel Large Storage Unit Large Storage Unit Small Laser Light EM Pulse Cannon Peak State ------------ > --- POWER ------------ Ion Engine > --- PROPULSION ------- Light Treads Aluminum Leg Aluminum Leg > --- UTILITY ---------- Medium Storage Unit > --- WEAPON ----------- Light EM Pulse Cannon Mini Grenade Launcher > --- INVENTORY -------- Ion Engine Light Treads Wheel Compact Wheel Large Storage Unit Large Storage Unit Small Laser Small Laser Mini Grenade Launcher [Rating: 10] Favorites ----------- Power Ion Engine Engine Ion Engine Propulsion Aluminum Leg Treads Light Treads Leg Aluminum Leg Wheel Wheel Utility Medium Storage Unit Storage Medium Storage Unit Weapon Small Laser Energy Gun Small Laser Energy Cannon Light EM Pulse Cannon Ballistic Gun Shotgun Launcher Mini Grenade Launcher Build | -11 -10 -9 ------- Run | Yrd Mat Mat Slots Evolved 2 | . . 2 Power . | . . . Propulsion 1 | . . 1 Utility 1 | . . 1 Weapon . | . . . Parts Attached 19 | 6 5 8 Power 1 | 1 . . Engine 1 | 1 . . Core . | . . . Reactor . | . . . Propulsion 6 | 2 2 2 Treads 1 | . . 1 Leg 4 | 1 2 1 Wheel 1 | 1 . . Hover . | . . . Flight . | . . . Utility 2 | 1 1 . Device . | . . . Storage 2 | 1 1 . Processor . | . . . Hackware . | . . . Protection . | . . . Artifact . | . . . Weapon 10 | 2 2 6 Energy Gun 5 | 2 . 3 Energy Cannon 1 | . . 1 Ballistic Gun 1 | . 1 . Ballistic Cannon . | . . . Launcher 3 | . 1 2 Special Weapon . | . . . Impact Weapon . | . . . Slashing Weapon . | . . . Piercing Weapon . | . . . Special Melee Weapon . | . . . Unidentified Prototypes . | . . . Parts Lost 2 | . 1 1 Power . | . . . Propulsion . | . . . Utility . | . . . Weapon 2 | . 1 1 Highest Loss Streak 1 | . 1 1 To Critical Strikes . | . . . Average Slot Usage (%) 81 | . 84 75 Engine 13 | . 14 11 Treads 2 | . . 9 Leg 24 | . 26 22 Wheel 1 | . 1 . Storage 13 | . 14 11 Energy Gun 16 | . 19 8 Energy Cannon 2 | . . 9 Ballistic Gun 4 | . 6 . Launcher 1 | . 1 2 Naked Turns . | . . . Heaviest Build 20 | 13 19 20 Greatest Support 20 | 10 20 20 Greatest Overweight (x) 1 | 1 1 . Average Overweight (x) . | . . . Largest Inventory Capacity 10 | 8 10 10 Average Capacity 9 | 7 9 10 Most Carried 10 | 7 10 10 Average Carried 7 | 5 8 8 Final Capacity 10 | 8 10 10 Final Carried 10 | 6 10 8 Class Distribution -------------------- 100% | Mutant Dominant Class ---------------- Mutant | -10/Materials Mutant | -9/Materials Resources | -11 -10 -9 ----------- Run | Yrd Mat Mat Matter Collected 340 | 225 115 . Remotely . | . . . Salvage Created 335 | . 178 157 Parts 22 | . 8 14 Haulers Intercepted . | . . . Recyclers Shooed . | . . . Parts Field Recycled . | . . . Retrieved Matter . | . . . Parts Self-Destructed . | . . . Prevented . | . . . Kills | -11 -10 -9 ------- Run | Yrd Mat Mat Combat Hostiles Destroyed 9 | . 4 5 Guns 3 | . 3 . Cannons 1 | . . 1 AOE 5 | . 1 4 Classes Destroyed 6 | . 2 4 Mechanic 1 | . . 1 Watcher 1 | . 1 . Swarmer 1 | . . 1 Grunt 6 | . 4 2 Brawler 1 | . . 1 Sentry 1 | . . 1 Best Kill Streak 4 | . 2 4 Combat Bots Only 3 | . 2 3 Max Kills in Single Turn 3 | . 1 3 Gunslinging . | . . . Exploded 2 | . 1 2 Melee . | . . . Uniques/NPCs Destroyed . | . . . Combat | -11 -10 -9 -------- Run | Yrd Mat Mat Hostile Shots Fired 37 | . 20 17 Missed 11 | . 3 8 Damage Taken 512 | . 277 235 Core 45 | . 34 11 Absorbed by Shields . | . . . Core Remaining (%) 93 | 100 86 . Volleys Fired 22 | . 18 4 Largest 2 | . 2 2 Hottest 86 | . 80 86 Shots Fired 43 | . 35 8 Gun 34 | . 33 1 Cannon 3 | . . 3 Launcher 6 | . 2 4 Special . | . . . Kinetic 4 | . 4 . Thermal 17 | . 16 1 Explosive 6 | . 2 4 Electromagnetic 16 | . 13 3 Robot Hit Streak 4 | . 4 3 Robot Miss Streak 3 | . 3 1 Penetration Max . | . . . Secondary Targets . | . . . Shots Hit Robots 26 | . 24 2 Core Hits 20 | . 12 8 Critical Kills . | . . . Critical Parts Destroyed . | . . . Critical Strikes . | . . . Melee Attacks . | . . . Impact . | . . . Slashing . | . . . Piercing . | . . . Sneak Attacks . | . . . Combat Hostiles . | . . . Follow-up Attacks . | . . . Damage Inflicted 1047 | . 474 573 Guns 317 | . 317 . Cannons 20 | . . 20 Explosions 710 | . 157 553 Melee . | . . . Ramming . | . . . Kinetic 41 | . 41 . Thermal 166 | . 166 . Explosive 663 | . 110 553 Electromagnetic 177 | . 157 20 Impact . | . . . Slashing . | . . . Piercing . | . . . Highest Corruption . | . . . Average Corruption . | . . . Corruption Purged . | . . . Corruption Blocked . | . . . Overload Shots . | . . . Overflow Damage 29 | . . 29 Projectiles . | . . . Explosions 29 | . . 29 Melee . | . . . Knockbacks . | . . . Impact . | . . . Kinetic . | . . . Secondary . | . . . Self-Inflicted Damage 216 | . 78 138 Shots 5 | . 2 3 Rammed . | . . . Targets Rammed . | . . . Kicked . | . . . Crushed . | . . . Highest Temperature 258 | . 258 21 Average Temperature 92 | . 103 10 Received Heat Transfer 144 | . 129 15 Siege Activations . | . . . Robots Corrupted . | . . . Combat Hostiles . | . . . Parts Fried . | . . . Impact Corruptions . | . . . Robots Melted . | . . . Combat Hostiles . | . . . Parts Melted . | . . . Heat Transferred 325 | . 325 . Parts Sabotaged . | . . . Parts Stolen . | . . . Parts Stripped . | . . . Power Chain Reactions 1 | . 1 . Alert | -11 -10 -9 ------- Run | Yrd Mat Mat Peak Influence 285 | . 194 285 Initial 81 | . . 81 Average 90 | . 75 168 Maximum Alert Level 1 | . . 1 Low Security (%) 85 | 100 100 45 Level 1 14 | . . 54 Level 2 . | . . . Level 3 . | . . . Level 4 . | . . . Level 5 . | . . . High Security . | . . . Max Security . | . . . Squads Dispatched 3 | . 2 1 Investigation . | . . . Extermination . | . . . Reinforcement 3 | . 2 1 Assault . | . . . Garrison . | . . . Intercept . | . . . Searches Triggered . | . . . Construction Impeded . | . . . Haulers Reinforced . | . . . Active Scanning Responses . | . . . Cargo Convoy Interrupts . | . . . Stealth | -11 -10 -9 --------- Run | Yrd Mat Mat Distress Signals . | . . . Communications Jammed . | . . . Distress Signals . | . . . Times Spotted 17 | . 9 8 Peak Tracking Total 4 | . 3 4 Tactical Retreats 1 | . 1 . Traps | -11 -10 -9 ------- Run | Yrd Mat Mat Traps Triggered . | . . . Indirectly . | . . . Trap Hack Attempts . | . . . Triggered . | . . . Disarmed . | . . . Reprogrammed . | . . . Reused . | . . . Traps Extracted . | . . . Installed . | . . . Triggered . | . . . Machines | -11 -10 -9 ---------- Run | Yrd Mat Mat Machines Disabled 2 | . . 2 Max in Single Turn 2 | . . 2 Machines Repaired . | . . . Machines Dismantled . | . . . Machines Sabotaged . | . . . Overloaded Fab Kills . | . . . Hacking | -11 -10 -9 --------- Run | Yrd Mat Mat Machines Accessed 1 | . . 1 Terminals . | . . . Fabricators . | . . . Repair Stations 1 | . . 1 Recycling Units . | . . . Scanalyzers . | . . . Garrison Access . | . . . Total Hacks 2 | . . 2 Successful 1 | . . 1 Failed 1 | . . 1 Catastrophic . | . . . Database Lockouts . | . . . Manual . | . . . Terminals . | . . . Fabricators . | . . . Repair Stations 2 | . . 2 Recycling Units . | . . . Scanalyzers . | . . . Garrison Access . | . . . Terminal Hacks . | . . . Fabricator Hacks . | . . . Repair Station Hacks 1 | . . 1 Scan Component 1 | . . 1 Recycling Unit Hacks . | . . . Scanalyzer . | . . . Garrison Access Hacks . | . . . Unauthorized Hacks . | . . . Terminals . | . . . Fabricators . | . . . Repair Stations . | . . . Recycling Units . | . . . Scanalyzers . | . . . Garrison Access . | . . . Data Cores Recovered . | . . . Used . | . . . Hacking Detections . | . . . Full Trace Events . | . . . Feedback Events . | . . . Feedback Blocked . | . . . Robot Schematics Acquired . | . . . Robots Built . | . . . Authchips . | . . . Time . | . . . Total Robot Build Rating . | . . . Part Schematics Acquired . | . . . Parts Built . | . . . Authchips . | . . . Time . | . . . Total Part Build Rating . | . . . Parts Repaired . | . . . Time . | . . . Parts Recycled . | . . . Recycled Matter . | . . . Retrieved Matter . | . . . Retrieved Components . | . . . Parts Scanalyzed . | . . . Part Schematics Acquired . | . . . Parts Damaged . | . . . Bothacking | -11 -10 -9 ------------ Run | Yrd Mat Mat Used RIF Installer . | . . . Robots Hacked . | . . . Non-combat . | . . . Combat . | . . . Robot Hacks Applied . | . . . Relay Couplers Released . | . . . Fabnet Peak Effective % . | . . . Robots Rewired . | . . . Allies Hacked . | . . . Hacks Repelled . | . . . Allies | -11 -10 -9 -------- Run | Yrd Mat Mat Total Allies . | . . . Largest Group . | . . . Highest-Rated Group . | . . . Highest-Rated Ally . | . . . Total Orders . | . . . Ally Attacks . | . . . Total Damage . | . . . Kills . | . . . Allies Corrupted . | . . . Allies Melted . | . . . Intel | -11 -10 -9 ------- Run | Yrd Mat Mat Robot Analysis Total . | . . . Derelict Logs Recovered . | . . . Drone Launches . | . . . Drone Recoveries . | . . . Exploration | -11 -10 -9 ------------- Run | Yrd Mat Mat Turns Passed 550 | 71 333 146 Spaces Moved 344 | 39 206 99 Core 8 | 8 . . Treads . | . . . Legs 334 | 29 206 99 Wheels 2 | 2 . . Hover . | . . . Flight . | . . . Fastest Speed 50 | 50 120 120 Average Speed 126 | 143 126 120 Slowest Speed 190 | 190 190 120 Overloaded Moves . | . . . Propulsion Burnouts . | . . . Robots Hopped . | . . . Cave-ins Triggered . | . . . Exploration Rate (%) 17 | 3 33 15 Regions Visited 2 Branch Regions . Pre-discovered Areas . | . . . Known Exits Taken . | . . . Unknown Exits Taken 2 | 1 1 . Scrap Searched . | . . . Spaces Dug 10 | . . 10 Terrain Destroyed 67 | . 23 44 Melee . | . . . Projectile . | . . . AOE 67 | . 23 44 Terrain Rammed . | . . . Walls Destroyed . | . . . Machines Disabled . | . . . Actions | -11 -10 -9 --------- Run | Yrd Mat Mat Total 416 | 54 245 117 Wait 5 | . 4 1 Move 342 | 38 205 99 Hop . | . . . Pick Up 20 | 10 8 2 Fast Attach 3 | 2 . 1 Attach 9 | 4 2 3 Detach 1 | . 1 . Swap 7 | . 3 4 Drop 7 | . 4 3 Fire 22 | . 18 4 Melee . | . . . Ram . | . . . Kick . | . . . Crush . | . . . Escape Stasis . | . . . Rewire . | . . . Trap . | . . . Miscellaneous . | . . . Route ------- -11/Scrapyard -10/Materials (discovered 2 exits: *Mat / [*Min]) -9/Materials History --------- Turn | Location | Event 10 | -11/Scrapyard | Discovered new exit (range 16) 72 | -11/Scrapyard | Entered Materials 191 | -10/Materials | Discovered new exit (range 6) 302 | -10/Materials | Build established: Mutant 388 | -10/Materials | Discovered new exit (range 5) 405 | -10/Materials | Entered another Materials area 405 | -9/Materials | Evolved 2 slots: Propulsion x1, Utility x1 551 | -9/Materials | Self-destructed Last Messages --------------- 00472_ Backup Power I tumbles out of repair station. 00472_ Backup Laser I tumbles out of repair station. 00472_ M-13 Machinist destroyed. 00472_ B-36 Bruiser destroyed. 00472_ Acquired Wheel. 00473_ Dropped Wheel. 00478_ The unstable cave ceiling collapses. 00481_ U-05 Engineer lays Concrete. 00482_ U-05 Engineer builds a Wall. 00497_ K-01 Serf collects debris. 00534_ G-34 Mercenary destroyed. 00537_ S-10 Pest destroyed. 00538_ R-06 Scavenger collects Ion Engine. 00543_ ALERT: Hostiles spotted, dispatching reinforcements to Terminal M002. [Achievement: Let's See Who's Tougher] 00548_ Destroyed Flight Unit. 00548_ S-10 Pest destroyed. Map ----- +----------------------------------------------------+ | ????????????????????? # #??? | | ??????????????????#####?####### #??? | | ??????????????????# ## # ##??? | | ??????????????????# """ ## # [ #???? | | ??????????????????# """"" ## # ! T #???? | | ??????????????????# """"" ## + #???? | | ??????????????????# """"" ## # ! #???? | | ??????????????????# """ ## ###########???? | | ??????????????????# ## ##????????????? | | ??????????????????#########+### #????????????? | | ????????????????????# #????????????? | | ????????????????????# T #????????????? | | ????????????????????# #????????????? | | ????????????????????# ####### #????????????? | | ????????????????????# #?????#######????????????? | | ????????????????????# #????????????????????????? | | ?????????????######## #############????????????? | | ?????????????# ???????????? | | ?????????????# ???????????? | | ?????????????# ???????????? | | ?????????????# #####+############ ?#??????????? | | ?????????????# ?# #?????????? #??????????? | | ?????????????# ??# #????????? ###???!/ ?? | | ?????????????#???# ###?????? %# !!/ ??? | | ?????????????????# ##????# %=/ ????? | | ?????????????????# ! @ ##### ##????????? | | ?????????????????# s% #????????? | | ?????????????????# ###### ##????????? | | ?????????????????# # #??????? #???????? | | ?????????????????# ####????????? #???????? | | ?????????????????##########??????????????#???????? | | ?????????????????????????????????????????????????? | | ?????????????????????????????????????????????????? | | ?????????????????????????????????????????????????? | | ?????????????????????????????????????????????????? | | ?????????????????????????????????????????????????? | | ?????????????????????????????????????????????????? | | | | | | | | | | | | | | | | | | | | | | | | | | | +----------------------------------------------------+ Best States ------------- Heat Dissipation 28 Energy Generation 10 Energy Capacity 250 Matter Stores 300 Matter Capacity 300 Sight Range 16 Terrain Scan Density 10 Evasion (%) 55 Item Schematics ----------------- None Robot Schematics ------------------ None Fabricated ------------ Nothing Alien Tech Used ----------------- None Achievements -------------- Let's See Who's Tougher Challenges ------------ None Game ------ Seed SubatomicPhysicsEdition Manual? 0 Play Time 00:12:13 Cumulative 4.6 hours Start 2024.05.15 @ 22:13:59 End 2024.05.15 @ 22:31:38 Sessions 1 Manual Loads 0 Difficulty Rogue Special Mode None Game No. 6 Rogue 3 Adventurer 3 Explorer 0 Win Type - Total 0 Types 0/0/0/0/0/0/0/0/0 Lore% 1 Gallery% 7 Achievement% 8 Wizard Run 0 Options --------- Layout 1 ASCII 0 Keyboard 0 Movement Mouse Keybinds 0 Fullscreen 2 Font 32/SmallcapsGlow Map View 50x35 Zoom Use 0% Tactical HUD 1 Map Filters NONE Filters NONE Steam 1 RUN: fa7da9bf-4e7f-4363-9afe-d62fd2016d93